Cogmind - Beta 17.1 @@@ ROGUE MODE // 2026.09.07 @ 12:21:24 Player: Kamyk Result: Destroyed by G-34 Mercenary with Small Laser Performance ------------- Evolutions (1) 500 Regions Visited (2) 400 Robots Destroyed (28) 140 Value Destroyed (725) 725 Prototype IDs (3) 60 Alien Tech Used (0) 0 Bonus (0) 0 TOTAL SCORE: 1825 Bonus ------- None Cogmind --------- Core Integrity 0/400 Matter 270/300 Energy 117/125 System Corruption 3% Temperature Cool (6) Movement Flying (107) Ox1 Location -9/Materials Parts ------- > --- POWER (1) -------- Light Ion Engine > --- PROPULSION (2) --- Improved Flight Unit Improved Flight Unit > --- UTILITY (4) ------ Heat Sink Medium Storage Unit > --- WEAPON (2) ------- (None) > --- INVENTORY (10) --- Light Treads Aluminum Leg Compact Wheel Improved Heat Sink Light Armor Plating Particle Cannon Heavy Assault Rifle Grenade Launcher Flail Peak State ------------ > --- POWER ------------ Light Nuclear Core > --- PROPULSION ------- Improved Flight Unit Improved Flight Unit > --- UTILITY ---------- Heat Sink Medium Storage Unit > --- WEAPON ----------- Particle Cannon Flail > --- INVENTORY -------- Light Ion Engine Light Treads Aluminum Leg Compact Wheel Improved Heat Sink Light Armor Plating Heavy Assault Rifle Grenade Launcher [Rating: 16] Favorites ----------- Power Ion Engine Engine Ion Engine Power Core Light Nuclear Core Propulsion Compact Wheel Leg Aluminum Leg Wheel Compact Wheel Flight Unit Improved Flight Unit Utility Medium Storage Unit Device Improved Heat Sink Storage Medium Storage Unit Processor Transport Network Coupler Protection Hardened Light Armor Plating Weapon Salvaging Laser Energy Gun Salvaging Laser Energy Cannon Particle Cannon Ballistic Gun Assault Rifle Launcher Grenade Launcher Impact Weapon Flail Build | -11 -10 -9 ------- Run | Yrd Mat Mat Slots Evolved 2 | . . 2 Power . | . . . Propulsion . | . . . Utility 2 | . . 2 Weapon . | . . . Parts Attached 28 | 5 4 19 Power 4 | 1 . 3 Engine 3 | 1 . 2 Core 1 | . . 1 Reactor . | . . . Propulsion 8 | 2 . 6 Treads . | . . . Leg 4 | . . 4 Wheel 2 | 2 . . Hover . | . . . Flight 2 | . . 2 Utility 7 | . 2 5 Device 3 | . 1 2 Storage 1 | . 1 . Processor 1 | . . 1 Hackware . | . . . Protection 2 | . . 2 Artifact . | . . . Weapon 9 | 2 2 5 Energy Gun 2 | . 2 . Energy Cannon 3 | . . 3 Ballistic Gun 2 | 2 . . Ballistic Cannon . | . . . Launcher 1 | . . 1 Special Weapon . | . . . Impact Weapon 1 | . . 1 Slashing Weapon . | . . . Piercing Weapon . | . . . Special Melee Weapon . | . . . Unidentified Prototypes 1 | . . 1 Parts Lost 18 | . . 18 Power 2 | . . 2 Propulsion 5 | . . 5 Utility 5 | . . 5 Weapon 6 | . . 6 Highest Loss Streak 7 | . . 7 To Critical Strikes . | . . . Average Backups 6 | 1 6 6 Power . | . 1 1 Propulsion 1 | 1 2 1 Utility 1 | . 2 1 Weapon 2 | . 1 2 Tool/Special . | . . . Unused Backups 5 | . . 5 Power . | . . . Propulsion 2 | . . 2 Utility 2 | . . 2 Weapon 1 | . . 1 Tool/Special . | . . . Average Slot Usage (%) 80 | . 93 72 Engine 9 | . 14 6 Leg 5 | . . 8 Wheel 13 | . 28 5 Device 10 | . 10 11 Storage 11 | . 11 11 Processor 2 | . . 4 Protection 3 | . . 4 Energy Gun 8 | . 20 2 Energy Cannon 2 | . . 4 Ballistic Gun 8 | . 7 9 Impact Weapon 2 | . . 3 Peak Build Rating 16 | 5 9 16 Average Rating 8 | 3 8 8 On Entrance 4 | . 5 9 Avg Prop Armor Cover (%) . | . . . Naked Turns . | . . . Heaviest Build 24 | 8 18 24 Greatest Support 26 | 26 26 26 Greatest Overweight (x) 6 | . . 6 Average Overweight (x) . | . . 1 Largest Inventory Capacity 10 | 5 10 10 Average Capacity 9 | 5 9 10 Most Carried 10 | 4 9 10 Average Carried 6 | 1 6 6 Final Capacity 10 | 5 10 10 Final Carried 9 | 3 9 9 Class Distribution -------------------- 100% | Mutant Dominant Class ---------------- Mutant | -10/Materials Mutant | -9/Materials Resources | -11 -10 -9 ----------- Run | Yrd Mat Mat Matter Collected 602 | 235 55 312 Remotely . | . . . Salvage Created 957 | . 115 842 Parts 50 | . 13 37 Haulers Intercepted 1 | . . 1 Recyclers Shooed 1 | . . 1 Parts Field Recycled . | . . . Retrieved Matter . | . . . Parts Self-Destructed . | . . . Prevented . | . . . Parts Restored . | . . . Kills | -11 -10 -9 ------- Run | Yrd Mat Mat Combat Hostiles Destroyed 18 | . 4 14 Guns 8 | . 4 4 Cannons 4 | . . 4 AOE 5 | . . 5 Classes Destroyed 9 | . 3 6 Worker 1 | . . 1 Builder 2 | . 1 1 Hauler 1 | . . 1 Recycler 3 | . . 3 Watcher 3 | . . 3 Swarmer 3 | . 3 . Grunt 9 | . 1 8 Brawler 1 | . . 1 Sentry 5 | . . 5 Best Kill Streak 11 | . 3 11 Combat Bots Only 5 | . 3 5 Max Kills in Single Turn 2 | . 1 2 Gunslinging . | . . . Exploded 2 | . . 2 Melee . | . . . Uniques/NPCs Destroyed . | . . . Combat | -11 -10 -9 -------- Run | Yrd Mat Mat Hostile Shots Fired 194 | . 18 176 Missed 49 | . 8 41 Hits 145 | . 10 135 Melee 5 | . . 5 Projectile 140 | . 10 130 Critical Strikes 8 | . . 8 Actively Blocked 1 | . . 1 Damage Taken 1959 | . 116 1843 Core 403 | . . 403 Absorbed by Shields . | . . . Redirected to Shielding 50 | . . 50 Core Remaining (%) 100 | 100 100 . Volleys Fired 76 | . 15 61 Largest 2 | . 2 2 Hottest 136 | . 60 136 Shots Fired 122 | . 31 91 Gun 85 | . 31 54 Cannon 26 | . . 26 Launcher 11 | . . 11 Special . | . . . Kinetic 33 | . . 33 Thermal 78 | . 31 47 Explosive 11 | . . 11 Electromagnetic . | . . . Robot Hit Streak 13 | . 7 13 Robot Miss Streak 4 | . 3 4 Penetration Max . | . . . Secondary Targets . | . . . Shots Hit Robots 81 | . 17 64 Core Hits 49 | . 8 41 Critical Kills 1 | . . 1 Critical Parts Destroyed . | . . . Critical Strikes 1 | . . 1 Destroy 1 | . . 1 Melee Attacks 3 | . . 3 Impact 3 | . . 3 Slashing . | . . . Piercing . | . . . Sneak Attacks 2 | . . 2 Combat Hostiles . | . . . Follow-up Attacks . | . . . Damage Inflicted 1861 | . 176 1685 Guns 516 | . 169 347 Cannons 454 | . . 454 Explosions 675 | . . 675 Melee 209 | . . 209 Ramming 7 | . 7 . Kinetic 240 | . . 240 Thermal 730 | . 169 561 Explosive 675 | . . 675 Electromagnetic . | . . . Impact 209 | . . 209 Slashing . | . . . Piercing . | . . . Highest Corruption 3 | . 2 3 Average Corruption 2 | . 1 3 Corruption Purged . | . . . Corruption Blocked . | . . . Effects 10 | . 3 7 Message Errors 1 | . . 1 Matter Fused 1 | . . 1 Heat Flow Errors 3 | . 2 1 Energy Discharges 2 | . . 2 Misfires 3 | . 1 2 Overload Shots . | . . . Overflow Damage 37 | . . 37 Projectiles . | . . . Explosions 2 | . . 2 Melee 35 | . . 35 Knockbacks 1 | . . 1 Impact 1 | . . 1 Kinetic . | . . . Secondary . | . . . Self-Inflicted Damage 8 | . 3 5 Shots 1 | . . 1 Rammed 1 | . 1 . Targets Rammed 1 | . 1 . Kicked . | . . . Crushed . | . . . Highest Temperature 355 | . 125 355 Average Temperature 134 | . 57 140 Received Heat Transfer 882 | . 39 843 Effects 3 | . . 3 Energy Bleed 3 | . . 3 Siege Activations . | . . . Martial Activations . | . . . Shielding Activations . | . . . Robots Disrupted . | . . . Combat Hostiles . | . . . Robots Corrupted 2 | . . 2 Combat Hostiles 1 | . . 1 Parts Fried 3 | . . 3 Impact Corruptions 2 | . . 2 Robots Melted . | . . . Combat Hostiles . | . . . Parts Melted 3 | . 1 2 Heat Transferred 1539 | . 450 1089 Parts Sabotaged . | . . . Parts Stolen . | . . . Parts Stripped . | . . . Power Chain Reactions . | . . . Alert | -11 -10 -9 ------- Run | Yrd Mat Mat Maximum Alert Level . | . . . Low Security (%) 100 | 100 100 100 Level 1 . | . . . Level 2 . | . . . Level 3 . | . . . Level 4 . | . . . Level 5 . | . . . High Security . | . . . Max Security . | . . . Peak Influence 199 | . 70 199 Initial 21 | . . 21 Average 57 | . 19 83 Influence Increases 713 | . 167 546 Destroy 0b10 Robot/C 360 | . 80 280 Destroy 0b10 Robot/NC 50 | . 5 45 Destroy Leader 118 | . 20 98 Successful Hack 2 | . 2 . Disable Machine 15 | . . 15 Destroy Structure 33 | . . 33 Lose Combat Pursuer 135 | . 60 75 Influence Decreases 629 | . 115 514 Entered New Map 31 | . . 31 Time Decay 428 | . 115 313 Lost Part 170 | . . 170 Squads Dispatched 6 | . 3 3 Investigation 2 | . 1 1 Extermination . | . . . Reinforcement 4 | . 2 2 Assault . | . . . Garrison . | . . . Intercept . | . . . Searches Triggered . | . . . Construction Impeded . | . . . Haulers Reinforced . | . . . Active Scanning Responses . | . . . Cargo Convoy Interrupts . | . . . Stealth | -11 -10 -9 --------- Run | Yrd Mat Mat Distress Signals 4 | . 2 2 Communications Jammed . | . . . Distress Signals . | . . . Times Spotted 57 | . 17 40 Peak Tracking Total 7 | . 5 7 Tactical Retreats 8 | . 2 6 ECM-based Alert Blocks 7 | . . 7 Traps | -11 -10 -9 ------- Run | Yrd Mat Mat Traps Triggered 3 | . 2 1 Indirectly . | . . . Trap Hack Attempts . | . . . Triggered . | . . . Disarmed . | . . . Reprogrammed . | . . . Reused . | . . . Traps Extracted . | . . . Installed . | . . . Triggered . | . . . Machines | -11 -10 -9 ---------- Run | Yrd Mat Mat Machines Disabled 1 | . . 1 Max in Single Turn 1 | . . 1 Machines Repaired . | . . . Machines Dismantled . | . . . Machines Sabotaged . | . . . Overloaded Fab Kills . | . . . Hacking | -11 -10 -9 --------- Run | Yrd Mat Mat Machines Accessed 3 | . 1 2 Terminals 2 | . 1 1 Fabricators . | . . . Repair Stations . | . . . Recycling Units . | . . . Scanalyzers 1 | . . 1 Garrison Access . | . . . Total Hacks 12 | . 5 7 Successful 7 | . 4 3 Failed 5 | . 1 4 Catastrophic . | . . . Database Lockouts . | . . . Manual . | . . . Terminals 9 | . 5 4 Fabricators . | . . . Repair Stations . | . . . Recycling Units . | . . . Scanalyzers 3 | . . 3 Garrison Access . | . . . Terminal Hacks 6 | . 4 2 Record 2 | . 2 . Prototype ID Bank 1 | . 1 . Emergency Access Points 1 | . 1 . Dispatch Records 1 | . . 1 Hauler Manifests 1 | . . 1 Fabricator Hacks . | . . . Repair Station Hacks . | . . . Recycling Unit Hacks . | . . . Scanalyzer 1 | . . 1 Retrieve Study 1 | . . 1 Garrison Access Hacks . | . . . Unauthorized Hacks . | . . . Terminals . | . . . Fabricators . | . . . Repair Stations . | . . . Recycling Units . | . . . Scanalyzers . | . . . Garrison Access . | . . . Data Cores Recovered . | . . . Used . | . . . Hacking Detections 3 | . 1 2 Full Trace Events 1 | . 1 . Feedback Events . | . . . Feedback Blocked . | . . . Robot Schematics Acquired . | . . . Robots Built . | . . . Authchips . | . . . Time . | . . . Total Robot Build Rating . | . . . Part Schematics Acquired . | . . . Parts Built . | . . . Authchips . | . . . Time . | . . . Total Part Build Rating . | . . . Part Studies Acquired 1 | . . 1 Parts Repaired . | . . . Time . | . . . Parts Recycled . | . . . Recycled Matter . | . . . Retrieved Matter . | . . . Retrieved Components . | . . . Parts Scanalyzed . | . . . Part Schematics Acquired . | . . . Parts Damaged . | . . . Bothacking | -11 -10 -9 ------------ Run | Yrd Mat Mat Used RIF Installer . | . . . Robots Hacked . | . . . Non-combat . | . . . Combat . | . . . Robot Hacks Applied . | . . . Relay Couplers Released . | . . . Fabnet Peak Effective % . | . . . Robots Rewired . | . . . Allies Hacked . | . . . Hacks Repelled . | . . . Allies | -11 -10 -9 -------- Run | Yrd Mat Mat Total Allies . | . . . Largest Group . | . . . Highest-Rated Group . | . . . Highest-Rated Ally . | . . . Total Orders . | . . . Ally Attacks . | . . . Total Damage . | . . . Kills . | . . . Allies Corrupted . | . . . Allies Melted . | . . . Intel | -11 -10 -9 ------- Run | Yrd Mat Mat Active Infowar (turns) 285 | . . 285 T.N.C. 285 | . . 285 ECM 278 | . . 278 Robot Analysis Total . | . . . Derelict Logs Recovered . | . . . Drone Launches . | . . . Drone Recoveries . | . . . Exploration | -11 -10 -9 ------------- Run | Yrd Mat Mat Turns Passed 1275 | 64 434 777 Spaces Moved 869 | 61 426 382 Core 25 | 9 . 16 Treads . | . . . Legs 150 | . . 150 Wheels 691 | 52 426 213 Hover . | . . . Flight 3 | . . 3 Fastest Speed 50 | 50 90 90 Average Speed 116 | 84 90 150 Slowest Speed 350 | 90 90 350 Overloaded Moves . | . . . Propulsion Burnouts . | . . . Robots Hopped 1 | . 1 . Potential Cave-ins . | . . . Cave-ins Triggered . | . . . Exploration Rate (%) 34 | 4 64 35 Regions Visited 2 Branch Regions . Pre-discovered Areas . | . . . Known Exits Taken . | . . . Unknown Exits Taken 2 | 1 1 . Scrap Searched . | . . . Spaces Dug . | . . . Terrain Destroyed 40 | . . 40 Melee . | . . . Projectile . | . . . AOE 40 | . . 40 Terrain Rammed . | . . . Walls Destroyed . | . . . Machines Disabled . | . . . Actions | -11 -10 -9 --------- Run | Yrd Mat Mat Total 1030 | 73 456 501 Wait 15 | . 4 11 Move 865 | 60 423 382 Hop 1 | . 1 . Pick Up 33 | 8 8 17 Fast Attach . | . . . Attach 26 | 5 2 19 Detach 2 | . . 2 Swap 7 | . 2 5 Drop 1 | . . 1 Fire 76 | . 15 61 Melee 3 | . . 3 Ram 1 | . 1 . Kick . | . . . Crush . | . . . Escape Stasis . | . . . Rewire . | . . . Trap . | . . . Miscellaneous . | . . . Route ------- -11/Scrapyard -10/Materials (discovered 2 exits: *Mat x2) -9/Materials History --------- Turn | Location | Event 6 | -11/Scrapyard | Discovered new exit (range 15) 65 | -11/Scrapyard | Entered Materials 66 | -10/Materials | Met a group of wandering Federalists 225 | -10/Materials | Discovered new exit (range 7) 308 | -10/Materials | Build established: Mutant 345 | -10/Materials | Discovered new exit (range 16) 499 | -10/Materials | Entered another Materials area 499 | -9/Materials | Evolved 2 slots: Utility x2 607 | -9/Materials | Lost 3 parts (1n2w) 809 | -9/Materials | Core integrity fell below 50% 841 | -9/Materials | Lost 7 parts (1p1n3u2w) 1043 | -9/Materials | Core integrity fell below 20% 1091 | -9/Materials | Lost 7 parts (1p2n2u2w) 1276 | -9/Materials | Destroyed by G-34 Mercenary with Small Laser Last Messages --------------- Effective improvements: +10% accuracy System corrupted: Energy discharge (-38). G-47 Trooper destroyed. System corrupted: Energy discharge (-15). Acquired Lgt. Nuclear Core. System corrupted: Matter fused (-8). Acquired 18 matter. Acquired Imp. Heat Sink. R-06 Scavenger collects Particle Gun. Sneak attack on K-01 Serf. Destroyed Wheel. K-01 Serf system corrupted by crushing effect. K-01 Serf knocked back. K-01 Serf system terminally corrupted. Med. Matter Pod fried. Acquired Prototype Flight Unit. Identified Imp. Flight Unit. [Achievement: Risk Taker] Dropped Lgt. Nuclear Core. Map ----- +----------------------------------------------------+ | ???????????# #????# ##### #??????????? | | ???????????# #????### ###???# #??????????? | | ???????????# ########+##??####+#+#######???????? | | ???????????# #= #??# #???????? | | ???????????# /% #??# #???????? | | ???????????# # [[ #??# #???????? | | ???????????# # [[ #??# #???????? | | ???????????# ###########??# #???????? | | ??########## ########?????# #???????? | | ??# # # #?????# #???????? | | ??# """ # # ![[ #?????# #???????? | | ??# """ # # [[[ #?????# #???????? | | ??# """ # # [ #?????# #???????? | | ??# ! + %#* #?????# #???????? | | ??# " # + #?????# #???????? | | ??# *[" # ###########??##############???????? | | ??#%/ * # # # #???????????????????????? | | ??# *%# ## ## ????????????????????? | | ############* # ##! ???????????????????? | | # ! ==## # ### ????????????????????? | | # ## ###?# #####???????????????????? | | # """ "" ## ##??## ######???????????????????? | | # """ """ # ##### # #???????????????????? | | # """ """ # g #???????????????????? | | # """ """ + #g #???????????????????? | | # """ """ # #@| *#???????????????????? | | # # %####### # |==#???????????????????? | | #####+######### ##????# # ==/#???????????????????? | | ???# #????### ##????# # #???????????????????? | | #### #??????# ##????# ######???????????????????? | | #??????# #??####+######???????????????????? | | +??????# #??# #???????????????????? | | %" #??????# #??# ""#???????????????????? | | """ #?????##%#### """ T"#???????????????????? | | """ ####### # """ ""#???????????????????? | | """ # """ #???????????????????? | | + #???????????????????? | | # #???????????????????? | | """ ####### # #???????????????????? | | """ #?????## ############???????????????????? | | """ ##?????# #??????????????????????????????? | | "#?????# #??????????????????????????????? | | T#?????# #??????????????????????????????? | | = "#?????# ??????????????????????????????? | | / #??????# ??????????????????????????????? | | #??????# ??????????????????????????????? | | ##"T"###??????#####??????????????????????????????? | | #?"""#???????????????????????????????????????????? | | #????????????????????????????????????????????????? | | #????????????????????????????????????????????????? | +----------------------------------------------------+ Best States ------------- Heat Dissipation 42 Energy Generation 14 Energy Capacity 250 Matter Stores 300 Matter Capacity 300 Sight Range 16 Terrain Scan Density 10 ECM Strength 1 Armor Coverage 150 Propulsion Shielding 33 Evasion (%) 55 Item Schematics ----------------- None Robot Schematics ------------------ None Fabricated ------------ Nothing Repaired ---------- Nothing Studied --------- Grenade Launcher | -9/Materials | Hacked Alien Tech Used ----------------- None Achievements -------------- Ghost 'Em Resistances Are Futile Risk Taker That Tickles Challenges ------------ None Game ------ Seed SurgeElectronSpoofer Manual? 0 Play Time 00:21:57 Cumulative 2.7 hours Start 2026.09.07 @ 11:39:33 End 2026.09.07 @ 12:21:24 Sessions 1 Manual Loads 0 Difficulty Rogue Special Mode None Game No. 10 Rogue 10 Adventurer 0 Explorer 0 Win Type - Total 0 Types 0/0/0/0/0/0/0/0/0/0 Lore% 1 Gallery% 6 Achievement% 6 Wizard Run 0 Options --------- Layout 0 ASCII 0 Keyboard 0 Movement Mouse Keybinds 0 Fullscreen 2 Font 18/SmallcapsGlow Map View 76x50 Zoom Use 0% Tactical HUD 0 Map Filters NONE Filters NONE Steam 1 RUN: c380d1bd-9c8a-45fb-9bb8-574022888f69